bitfinex/quotes_SOLUSD_20250719
["timestamp","ask_amount","ask_price","bid_price","bid_amount"]
[1752931371993,3.5880267,177.27,177.26,40.48]
[1752931372385,5.64094328,177.28,177.26,40.48]
[1752931372704,4.2780267,177.27,177.26,39.82]
[1752931372900,3.5880267,177.27,177.26,39.82]
[1752931373808,5.64094328,177.28,177.26,39.82]
[1752931374008,3.5880267,177.27,177.26,39.82]
[1752931374710,5.64094328,177.28,177.26,39.82]
[1752931374886,3.5880267,177.27,177.26,39.82]
[1752931376413,3.5880267,177.27,177.26,40.53]
[1752931377792,5.64015792,177.3,177.26,40.53]
[1752931378116,3.5880267,177.27,177.26,40.53]
[1752931379001,3.5880267,177.28,177.26,40.53]
[1752931379306,3.5880267,177.29,177.27,0.71]
[1752931379514,3.5880267,177.29,177.28,0.71]
[1752931380306,5.6397684,177.32,177.28,0.71]
[1752931380484,5.6397684,177.32,177.26,26.0]
[1752931380485,3.5880267,177.29,177.26,26.0]
[1752931380691,0.69,177.29,177.27,39.78]
[1752931381000,0.69,177.31,177.27,39.78]
[1752931381201,19.73857282,177.32,177.27,39.78]
[1752931381503,0.69,177.31,177.27,40.49]
[1752931381895,3.5880267,177.29,177.27,40.49]
[1752931382095,9.22818462,177.3,177.28,0.71]
[1752931382292,9.22818462,177.3,177.29,0.71]
[1752931382497,9.22797411,177.31,177.29,0.71]
[1752931382912,3.6480267,177.3,177.29,0.71]
[1752931387005,9.28818462,177.3,177.27,55.58]
[1752931387219,9.28818462,177.3,177.28,0.71]
[1752931387719,3.5880267,177.29,177.28,0.71]
[1752931388216,9.22850275,177.29,177.28,0.71]
[1752931388398,9.22850275,177.29,177.27,55.58]
[1752931388601,3.5880267,177.28,177.27,55.58]
[1752931389456,3.5880267,177.28,177.27,39.78]
[1752931389719,4.2780267,177.28,177.27,39.78]
[1752931390123,3.5880267,177.28,177.27,39.78]
[1752931390306,9.22882092,177.28,177.27,39.78]
[1752931392401,9.91882092,177.28,177.26,39.7]
[1752931392607,3.5880267,177.27,177.26,39.7]
[1752931392806,3.5880267,177.27,177.24,16.78468397]
[1752931393135,3.5880267,177.27,177.25,39.7]
[1752931393436,3.5880267,177.27,177.26,39.7]
[1752931394638,9.22913912,177.27,177.26,39.7]
[1752931396442,9.91913912,177.27,177.26,39.7]
[1752931396739,9.91913912,177.27,177.24,39.68]
[1752931397043,3.5880267,177.25,177.24,39.68]
[1752931397905,4.2780267,177.25,177.24,39.68]
[1752931398229,5.64206725,177.24,177.23,15.8]
[1752931398430,9.92009395,177.24,177.22,39.66]
[1752931399219,3.5880267,177.23,177.22,39.66]
[1752931400214,9.2304123,177.23,177.22,39.66]
[1752931400428,9.2304123,177.23,177.22,40.37]
[1752931401214,9.2304123,177.23,177.22,39.66]
[1752931402735,9.9204123,177.23,177.22,39.66]
[1752931403224,9.2304123,177.23,177.22,39.66]
[1752931404237,9.2304123,177.23,177.22,39.69]
[1752931404434,14.10278106,177.27,177.22,40.36]
[1752931404639,14.16103796,177.3,177.25,26.0]
[1752931404821,9.22850275,177.29,177.26,40.31]
[1752931405027,5.64047605,177.29,177.27,0.67]
[1752931405226,5.64047605,177.29,177.28,40.33]
[1752931405750,3.6480267,177.3,177.28,40.33]
[1752931405751,5.70022839,177.3,177.28,40.33]
[1752931406075,5.70022839,177.3,177.29,0.67]
[1752931406212,5.70022839,177.3,177.28,39.66]
[1752931406417,9.28825509,177.3,177.28,39.66]
[1752931407722,5.70022839,177.3,177.28,39.66]
[1752931407937,3.5880267,177.29,177.28,39.66]
[1752931408240,5.70022839,177.3,177.28,39.66]
[1752931408550,3.5880267,177.29,177.28,40.33]
[1752931408733,3.5880267,177.29,177.28,39.66]
[1752931409243,0.06,177.3,177.28,40.33]
[1752931409429,3.5880267,177.29,177.28,40.33]
[1752931409628,3.5880267,177.29,177.28,39.66]
[1752931411462,9.22850275,177.29,177.28,39.66]
[1752931412748,0.06,177.3,177.28,40.33]
[1752931412949,0.06,177.3,177.29,0.67]
[1752931413156,3.6480267,177.3,177.29,0.67]
[1752931413352,9.28818462,177.3,177.29,0.67]
[1752931413762,0.06,177.3,177.29,0.67]
[1752931414952,0.06,177.3,177.29,17.45468397]
[1752931415962,0.06,177.3,177.29,71.18675827]
[1752931416156,0.06,177.3,177.29,72.80255827]
[1752931418474,0.06,177.3,177.29,69.21453157]
[1752931418772,0.06,177.3,177.29,108.25048397]
[1752931419557,0.06,177.3,177.29,132.63468397]
[1752931419756,0.06,177.3,177.29,65.6]
[1752931420647,0.06,177.3,177.29,99.38]
[1752931420849,0.06,177.3,177.29,100.05]
[1752931421769,0.06,177.3,177.29,116.83468397]
[1752931421970,0.06,177.3,177.29,120.42271067]
[1752931422149,0.06,177.3,177.29,94.42271067]
[1752931423455,0.06,177.3,177.29,51.23468397]
[1752931423656,0.06,177.3,177.29,116.14468397]
[1752931424157,3.6480267,177.3,177.29,116.14468397]
[1752931424653,9.28818462,177.3,177.29,116.14468397]
[1752931424845,5.70015792,177.3,177.29,116.14468397]
[1752931426676,0.06,177.3,177.29,116.14468397]
[1752931427478,0.06,177.3,177.29,82.36468397]
[1752931430776,0.06,177.3,177.29,42.78468397]
[1752931430950,0.06,177.3,177.29,116.12468397]
[1752931435479,0.74,177.3,177.29,116.12468397]
[1752931435773,0.06,177.3,177.29,116.12468397]
[1752931436167,5.06,177.3,177.29,116.12468397]
[1752931436360,5.06,177.3,177.29,116.79468397]
[1752931437181,5.06,177.3,177.29,132.59468397]
[1752931440762,10.70015792,177.3,177.29,132.59468397]
[1752931440959,5.06,177.3,177.29,132.59468397]
[1752931441484,5.06,177.3,177.29,131.92468397]
[1752931442075,18.55621132,177.3,177.27,39.48]
[1752931442370,3.5880267,177.28,177.25,33.78]
[1752931442573,3.5880267,177.26,177.25,90.04468397]
[1752931442775,6.32143066,177.26,177.25,90.04468397]
[1752931442965,9.90945736,177.26,177.25,90.04468397]
[1752931443165,9.90945736,177.26,177.25,50.56468397]
[1752931443368,9.22945736,177.26,177.25,50.56468397]
[1752931444282,3.5880267,177.26,177.25,50.56468397]
[1752931444583,9.22945736,177.26,177.25,50.56468397]
[1752931444784,9.90945736,177.26,177.25,50.56468397]
[1752931445169,9.22945736,177.26,177.25,50.56468397]
[1752931445468,9.22945736,177.26,177.25,16.78468397]
[1752931446282,9.90945736,177.26,177.24,39.55]
[1752931446486,4.2680267,177.25,177.24,39.55]
[1752931446878,4.2680267,177.25,177.24,0.03]
[1752931447482,9.90977564,177.25,177.24,0.03]
[1752931449896,6.32174894,177.25,177.24,0.03]
[1752931450088,9.90977564,177.25,177.24,0.03]
[1752931450604,13.6480267,177.3,177.24,0.7]
[1752931450605,3.5880267,177.26,177.24,0.7]
[1752931450804,3.5880267,177.26,177.25,39.52]
[1752931451688,9.22945736,177.26,177.25,39.52]
[1752931451886,9.90945736,177.26,177.25,39.52]
[1752931452083,9.90945736,177.26,177.24,39.55]
[1752931452283,6.32143066,177.26,177.24,39.55]
[1752931452482,4.2680267,177.25,177.24,0.03]
[1752931453613,9.90977564,177.25,177.24,0.03]
[1752931456000,9.22977564,177.25,177.24,0.03]
[1752931457186,0.68,177.26,177.24,42.81468397]
[1752931457390,3.5880267,177.27,177.26,16.78468397]
[1752931457594,9.22913912,177.27,177.26,16.78468397]
[1752931459496,9.22913912,177.27,177.25,65.5]
[1752931459497,9.90913912,177.27,177.25,39.5]
[1752931459805,4.2680267,177.26,177.24,16.81468397]
[1752931460004,4.2680267,177.25,177.24,0.03]
[1752931460790,9.90977564,177.25,177.24,0.03]
[1752931461605,3.5880267,177.25,177.24,0.03]
[1752931462186,3.5880267,177.26,177.24,56.98468397]
[1752931462403,3.5880267,177.25,177.24,56.98468397]
[1752931463320,3.5880267,177.25,177.24,56.31468397]
[1752931464315,5.64120194,177.27,177.24,56.31468397]
[1752931464316,3.5880267,177.26,177.24,57.01468397]
[1752931464503,3.5880267,177.25,177.24,57.01468397]
[1752931465632,3.5880267,177.26,177.24,57.01468397]
[1752931466398,3.5880267,177.25,177.24,57.01468397]
[1752931466626,3.5880267,177.25,177.24,56.31468397]
[1752931466838,3.5880267,177.25,177.24,72.11468397]
[1752931470422,3.5880267,177.25,177.24,105.89468397]
[1752931470795,5.64120536,177.27,177.24,106.59468397]
[1752931471113,3.5880267,177.26,177.25,17.48468397]
[1752931471694,5.64120536,177.27,177.25,17.48468397]
[1752931471916,5.64120536,177.27,177.26,39.46]
[1752931472216,5.64079422,177.28,177.26,39.46]
[1752931473000,3.5880267,177.27,177.26,39.46]
[1752931473200,4.2880267,177.27,177.26,39.46]
[1752931473796,4.2880267,177.27,177.25,56.24468397]
[1752931474016,3.5880267,177.26,177.25,56.24468397]
[1752931475423,3.5880267,177.26,177.25,56.94468397]
[1752931476617,3.5880267,177.26,177.25,56.24468397]
[1752931476814,9.22945736,177.26,177.25,56.24468397]
[1752931480326,9.22945736,177.26,177.25,90.02468397]
[1752931481200,3.5880267,177.26,177.25,90.02468397]
[1752931482223,5.64047605,177.29,177.26,16.78468397]
[1752931482424,3.5880267,177.27,177.26,15.8]
[1752931482630,4.2880267,177.27,177.26,15.8]
[1752931482808,4.2880267,177.27,177.24,39.49]
[1752931483008,3.5880267,177.25,177.24,0.03]
[1752931483424,4.2880267,177.25,177.24,0.03]
[1752931483824,9.92977564,177.25,177.24,0.03]
[1752931497438,6.34174894,177.25,177.24,0.03]
[1752931497641,5.64174894,177.25,177.24,0.03]
[1752931497829,9.22977564,177.25,177.24,0.03]
[1752931499436,9.92977564,177.25,177.24,0.03]
[1752931500531,9.22977564,177.25,177.24,0.03]
[1752931505532,10.76,177.3,177.24,56.97468397]
[1752931505840,3.5880267,177.27,177.25,0.7]
[1752931506030,3.5880267,177.27,177.24,72.07468397]
[1752931506343,3.5880267,177.27,177.26,26.7]
[1752931506543,10.76,177.3,177.27,16.78468397]
[1752931506544,10.06,177.3,177.27,16.78468397]
[1752931506756,10.06,177.3,177.28,39.46]
[1752931506957,10.06,177.3,177.29,0.7]
[1752931507153,15.70015792,177.3,177.29,0.7]
[1752931507369,19.28818462,177.3,177.28,39.46]
[1752931507523,19.28818462,177.3,177.28,40.16]
[1752931509424,13.6480267,177.3,177.29,0.7]
[1752931511035,10.06,177.3,177.29,17.48468397]
[1752931511432,10.06,177.3,177.29,43.48468397]
[1752931514040,10.06,177.3,177.29,59.28468397]
[1752931514444,10.06,177.3,177.29,96.65271067]
[1752931514970,10.06,177.3,177.29,71.21675827]
[1752931520944,10.06,177.3,177.29,76.85723432]
[1752931521342,10.06,177.3,177.29,93.77723432]
[1752931521737,10.06,177.3,177.29,88.13675827]
[1752931524860,10.06,177.3,177.29,92.5876587]
[1752931526457,10.06,177.3,177.29,98.22813475]
[1752931526776,10.06,177.3,177.29,105.85295561]
[1752931530866,0.06,177.34,177.33,50.56468397]
[1752931531070,0.06,177.34,177.33,94.13663104]
[1752931531256,0.06,177.34,177.33,94.82663104]
[1752931532777,0.06,177.34,177.33,103.22663104]
[1752931533556,0.06,177.34,177.33,125.78583478]
[1752931533757,0.06,177.34,177.33,125.22191441]
[1752931536679,0.06,177.34,177.33,115.99468397]
[1752931536975,0.06,177.34,177.33,98.38468397]
[1752931538253,0.75,177.34,177.33,50.56468397]
[1752931538473,0.06,177.34,177.33,89.98468397]
[1752931538663,0.06,177.34,177.33,90.67468397]
[1752931539578,0.06,177.34,177.33,93.57271067]
[1752931539779,0.06,177.34,177.33,94.26271067]
[1752931540480,0.06,177.34,177.33,111.18271067]
[1752931540687,0.06,177.34,177.33,102.66271067]
[1752931540865,0.06,177.34,177.33,132.84673527]
[1752931541257,0.06,177.38,177.37,76.56468397]
[1752931541460,0.06,177.38,177.37,127.91271067]
[1752931541660,0.06,177.38,177.37,128.60271067]
[1752931543095,0.06,177.38,177.37,145.52271067]
[1752931543392,0.06,177.38,177.37,151.16064267]
[1752931543888,0.06,177.38,177.37,145.52271067]
[1752931544877,0.06,177.38,177.37,141.93468397]
[1752931545092,0.06,177.38,177.37,127.91271067]
[1752931545279,0.75,177.38,177.37,127.91271067]
[1752931545481,0.75,177.38,177.37,124.32468397]
[1752931546564,0.75,177.38,177.37,115.98468397]
[1752931547687,0.06,177.38,177.37,115.98468397]
[1752931548164,0.06,177.38,177.37,127.91271067]
[1752931549387,0.06,177.38,177.37,124.32468397]
[1752931550786,0.06,177.38,177.37,141.24468397]
[1752931550990,0.75,177.38,177.37,124.32468397]
[1752931551207,0.75,177.38,177.37,124.30468397]
[1752931551675,0.75,177.38,177.37,115.96468397]
[1752931555389,0.75,177.38,177.37,124.30468397]
[1752931556713,6.38761416,177.38,177.37,124.30468397]
[1752931557113,9.97564086,177.38,177.37,64.52468397]
[1752931557415,9.97564086,177.38,177.37,47.74]
[1752931557717,9.97564086,177.38,177.37,39.4]
[1752931557893,9.97564086,177.38,177.35,42.12]
[1752931558095,3.5880267,177.36,177.3,14.006]
[1752931558294,3.5880267,177.33,177.32,33.78]
[1752931558494,3.5880267,177.33,177.32,99.18]
[1752931558702,4.2480267,177.33,177.32,99.18]
[1752931558894,4.2480267,177.33,177.32,73.18]
[1752931559104,4.2480267,177.33,177.32,99.18]
[1752931559802,0.66,177.33,177.32,99.18]
[1752931560998,4.2480267,177.33,177.32,99.18]
[1752931561321,4.2480267,177.33,177.32,107.52]
[1752931561700,9.88723044,177.33,177.32,107.52]
[1752931562702,9.88723044,177.33,177.32,64.52468397]
[1752931564925,0.66,177.33,177.32,64.52468397]
[1752931565424,0.66,177.33,177.32,98.34468397]
[1752931567425,9.88695821,177.34,177.32,98.34468397]
[1752931568801,4.2480267,177.36,177.33,50.60468397]
[1752931569022,4.2480267,177.36,177.34,39.4]
[1752931569227,0.66,177.35,177.34,64.52468397]
[1752931575710,0.66,177.35,177.34,98.34468397]
[1752931576113,9.22642632,177.36,177.34,98.34468397]
[1752931576309,9.88642632,177.36,177.34,98.34468397]
[1752931577831,3.5880267,177.35,177.34,98.34468397]
[1752931580238,0.06,177.38,177.35,50.60468397]
[1752931580525,9.94569326,177.38,177.36,39.4]
[1752931580917,9.28569326,177.38,177.36,39.4]
[1752931581119,0.66,177.37,177.36,56.18468397]
[1752931581415,9.94569326,177.38,177.36,56.18468397]
[1752931581625,4.3080267,177.38,177.36,56.18468397]
[1752931584830,0.06,177.38,177.36,56.18468397]
[1752931585033,3.6480267,177.38,177.36,64.52468397]
[1752931585223,0.06,177.38,177.36,65.24468397]
[1752931585429,0.06,177.38,177.37,0.72]
[1752931585628,0.06,177.38,177.36,64.52468397]
[1752931585818,0.06,177.38,177.37,33.82]
[1752931590837,0.06,177.38,177.37,76.60468397]
[1752931591022,0.06,177.38,177.37,85.66468397]
[1752931594644,0.06,177.38,177.37,84.94468397]
[1752931597648,0.06,177.38,177.37,85.66468397]
[1752931598436,0.06,177.38,177.37,91.30068397]
[1752931598750,0.06,177.38,177.37,63.81650387]
[1752931601053,0.76,177.38,177.37,59.50847717]
[1752931601348,4.3480267,177.38,177.37,124.32468397]
[1752931601856,9.98564086,177.38,177.37,81.54]
[1752931602048,9.98564086,177.38,177.37,47.72]
[1752931602728,9.98564086,177.38,177.36,39.44]
[1752931602925,4.2880267,177.37,177.36,39.44]
[1752931603155,4.2880267,177.37,177.35,39.44]
[1752931603355,0.7,177.36,177.35,65.44]
[1752931603930,4.2880267,177.36,177.35,65.44]
[1752931606355,0.76,177.38,177.35,66.16]
[1752931606539,0.06,177.38,177.36,16.78468397]
[1752931606858,0.06,177.38,177.37,39.42]
[1752931607032,4.3480267,177.38,177.37,39.42]
[1752931608735,3.6480267,177.38,177.37,39.42]
[1752931609536,4.3480267,177.38,177.37,39.42]
[1752931610451,3.6480267,177.38,177.37,39.42]
[1752931610757,9.98564086,177.38,177.37,65.42]
[1752931616067,4.3480267,177.38,177.37,65.42]
[1752931617467,9.98564086,177.38,177.37,65.42]
[1752931620470,0.76,177.38,177.37,65.42]
[1752931620645,0.06,177.38,177.37,125.02468397]
[1752931622846,0.06,177.38,177.37,128.61271067]
[1752931623070,0.06,177.38,177.37,125.02468397]
[1752931623578,0.06,177.38,177.37,128.61271067]
[1752931629271,0.06,177.38,177.37,145.53271067]
[1752931629774,0.06,177.38,177.37,151.17064267]
[1752931630475,0.06,177.38,177.37,166.94456353]
[1752931630853,0.06,177.38,177.37,172.58056353]
[1752931631373,0.06,177.41,177.4,50.60468397]
[1752931631565,0.06,177.41,177.4,102.31640852]
[1752931631878,0.06,177.41,177.4,102.97640852]
[1752931637981,0.06,177.41,177.4,108.61338709]
[1752931639059,0.06,177.41,177.4,102.97640852]
[1752931639253,0.06,177.41,177.4,133.15820795]
[1752931639456,0.06,177.41,177.4,132.5945101]
[1752931640376,0.06,177.41,177.4,138.2305101]
[1752931640677,0.06,177.41,177.4,132.5945101]
[1752931640878,0.06,177.41,177.4,142.5945101]
[1752931641253,0.06,177.46,177.45,50.60468397]
[1752931641449,0.06,177.46,177.45,102.01624969]
[1752931642360,0.06,177.46,177.45,102.67624969]
[1752931644762,0.06,177.46,177.45,119.59624969]
[1752931645092,0.06,177.46,177.45,285.40143425]
[1752931645609,0.2,177.48,177.47,67.52468397]
[1752931645886,0.2,177.48,177.47,111.03618618]
[1752931646384,0.2,177.48,177.47,111.75618618]
[1752931647300,0.2,177.48,177.47,117.39218618]
[1752931647471,0.2,177.48,177.47,116.82871067]
[1752931649688,0.2,177.48,177.47,116.82746583]
[1752931649868,0.2,177.48,177.47,122.46346583]
[1752931650068,0.2,177.53,177.51,50.60468397]
[1752931650268,0.2,177.53,177.51,101.59605921]
[1752931650486,0.2,177.53,177.51,102.31605921]
[1752931650988,0.2,177.53,177.51,104.46865788]
[1752931652392,5.83294042,177.53,177.51,98.00803251]
[1752931652595,0.9,177.52,177.51,97.44468397]
[1752931652968,6.53316809,177.52,177.51,50.28468397]
[1752931653167,10.12119479,177.52,177.51,89.62468397]
[1752931654378,6.53316809,177.52,177.51,89.62468397]
[1752931654569,0.9,177.52,177.51,89.62468397]
[1752931655690,0.9,177.52,177.51,123.44468397]
[1752931656774,10.12119479,177.52,177.51,123.44468397]
[1752931657991,6.53316809,177.52,177.51,123.44468397]
[1752931658204,25.83511502,177.52,177.46,24.28468397]
[1752931658411,21.54708832,177.52,177.47,16.78468397]
[1752931658567,3.5880267,177.48,177.47,56.28468397]
[1752931658773,4.2880267,177.48,177.47,63.78468397]
[1752931659069,4.2880267,177.48,177.47,39.5]
[1752931660065,7.8760534,177.48,177.46,39.5]
[1752931660266,4.2880267,177.47,177.46,39.5]
[1752931660472,9.92278186,177.47,177.46,39.5]
[1752931660870,9.92278186,177.47,177.45,39.48]
[1752931661107,4.2880267,177.46,177.45,39.48]
[1752931661292,4.2880267,177.46,177.42,7.5]
[1752931661499,2.331,177.45,177.43,39.5]
[1752931661794,4.2880267,177.44,177.43,39.5]
[1752931661979,4.2880267,177.44,177.41,50.28468397]
[1752931661980,4.2880267,177.44,177.41,24.28468397]
[1752931662192,0.7,177.43,177.42,39.5]
[1752931662391,6.33602547,177.43,177.42,39.5]
[1752931663181,9.92405217,177.43,177.42,39.5]
[1752931665684,6.33602547,177.43,177.42,39.5]
[1752931665884,9.92405217,177.43,177.42,39.5]
[1752931667485,9.92405217,177.43,177.4,26.0]
[1752931667486,6.33602547,177.43,177.4,26.0]
[1752931667785,5.63602547,177.43,177.42,0.03]
[1752931667990,9.22405217,177.43,177.42,0.03]
[1752931668414,9.92405217,177.43,177.42,0.03]
[1752931676790,6.33602547,177.43,177.42,0.03]
[1752931677094,9.92405217,177.43,177.42,0.03]
[1752931695732,9.22405217,177.43,177.42,0.03]
[1752931696038,9.91405217,177.43,177.42,0.03]
[1752931699038,8.63158624,177.43,177.42,0.03]
[1752931707030,5.63602547,177.43,177.42,0.03]
[1752931707243,7.94158624,177.43,177.42,0.75]
[1752931708556,5.63602547,177.43,177.42,0.75]
[1752931708746,2.30556077,177.43,177.42,0.75]
[1752931709940,7.94158624,177.43,177.42,0.75]
[1752931710253,7.94158624,177.43,177.42,0.03]
[1752931710930,8.61158624,177.43,177.42,39.69]
[1752931718440,7.94158624,177.43,177.42,39.69]
[1752931718861,7.94158624,177.43,177.42,40.41]
[1752931720352,8.61158624,177.43,177.42,39.69]
[1752931722163,22.70164992,177.43,177.38,0.03]
[1752931722361,2.30556077,177.39,177.38,39.61]
[1752931722867,2.97556077,177.39,177.38,39.61]
[1752931723041,4.27410606,177.39,177.38,39.61]
[1752931723850,3.60410606,177.39,177.38,39.61]
[1752931724756,9.24140241,177.39,177.38,39.61]
[1752931725551,3.60410606,177.39,177.38,39.61]
[1752931725873,3.60410606,177.39,177.38,40.33]
[1752931726749,9.24140241,177.39,177.38,40.33]
[1752931729252,9.24140241,177.39,177.38,39.61]
[1752931731171,3.60410606,177.39,177.38,40.33]
[1752931732158,3.60410606,177.39,177.38,39.61]
[1752931732872,9.24140241,177.39,177.38,39.61]
[1752931735373,9.24140241,177.39,177.38,73.43]
[1752931737477,9.93140241,177.39,177.38,33.85]
[1752931737777,9.24140241,177.39,177.38,73.39]
[1752931738184,9.24140241,177.39,177.38,74.06]
[1752931738760,3.60410606,177.39,177.38,74.06]
[1752931738960,3.60410606,177.39,177.38,90.84468397]
[1752931740059,3.60410606,177.39,177.38,51.30468397]
[1752931740271,3.60410606,177.39,177.38,90.84468397]
[1752931740566,3.60410606,177.39,177.38,90.17468397]
[1752931740766,9.24140241,177.39,177.38,90.17468397]
[1752931741865,3.60410606,177.39,177.38,90.17468397]
[1752931742267,3.60410606,177.39,177.38,90.84468397]
[1752931743473,9.3005439,177.42,177.39,16.78468397]
[1752931743678,9.3005439,177.42,177.4,40.19]
[1752931744385,3.60410606,177.41,177.4,39.52]
[1752931744886,4.29410606,177.41,177.4,39.52]
[1752931745060,2.99531701,177.41,177.4,39.52]
[1752931745464,8.63197785,177.41,177.4,39.52]
[1752931745665,7.94197785,177.41,177.4,73.34]
[1752931745865,5.6964445,177.42,177.4,73.34]
[1752931746186,2.30531701,177.41,177.4,74.01]
[1752931747484,7.94197785,177.41,177.4,74.01]
[1752931747995,2.30531701,177.41,177.4,74.01]
[1752931750294,7.94197785,177.41,177.4,39.52]
[1752931751704,0.06,177.42,177.4,40.19]
[1752931752003,8.00171394,177.42,177.41,0.67]
[1752931752887,5.69639693,177.42,177.41,0.67]
[1752931753085,8.00171394,177.42,177.4,39.52]
[1752931753514,0.06,177.42,177.4,40.19]
[1752931753817,2.36531701,177.42,177.4,40.19]
[1752931755084,2.36531701,177.42,177.41,0.67]
[1752931755278,0.06,177.42,177.41,0.67]
[1752931757097,2.36531701,177.42,177.4,47.52]
[1752931757311,2.36531701,177.42,177.4,48.19]
[1752931759885,8.00168977,177.42,177.4,48.19]
[1752931760084,5.69637276,177.42,177.41,0.67]
[1752931760301,2.36531701,177.42,177.41,34.49]
[1752931760901,0.06,177.42,177.41,34.49]
[1752931761282,0.06,177.42,177.41,51.27468397]
[1752931761690,0.06,177.42,177.41,59.27468397]
[1752931763616,0.06,177.42,177.41,58.60468397]
[1752931766597,0.73,177.42,177.41,58.60468397]
[1752931767192,0.06,177.42,177.41,58.60468397]
[1752931769022,0.06,177.42,177.41,59.29468397]
[1752931771132,0.06,177.42,177.41,58.60468397]
[1752931779932,0.06,177.42,177.41,59.29468397]
[1752931780432,0.06,177.42,177.41,58.60468397]
[1752931781035,0.06,177.42,177.41,59.29468397]
[1752931782230,0.06,177.42,177.41,58.60468397]
[1752931782436,0.06,177.42,177.41,59.29468397]
[1752931783917,0.06,177.42,177.41,68.62526706]
[1752931784311,0.06,177.42,177.41,68.06160098]
[1752931789238,0.06,177.42,177.41,216.76160098]
[1752931797456,0.06,177.42,177.41,246.72468397]
[1752931797748,0.06,177.42,177.41,246.75468397]
[1752931799149,0.06,177.42,177.41,249.06000098]
[1752931799348,0.06,177.42,177.41,249.77000098]
[1752931800937,0.06,177.42,177.41,101.07000098]
[1752931802045,0.06,177.42,177.41,101.63366706]
[1752931803576,0.06,177.42,177.41,98.05468397]
[1752931803748,0.75,177.42,177.41,98.05468397]
[1752931804342,0.06,177.42,177.41,98.05468397]
[1752931805563,0.06,177.42,177.41,58.63468397]
[1752931805743,0.06,177.42,177.41,98.03468397]
[1752931805946,0.06,177.42,177.41,101.05000098]
[1752931806465,0.06,177.42,177.41,100.34000098]
[1752931807344,0.75,177.42,177.41,58.63468397]
[1752931807549,3.05531701,177.42,177.41,81.25]
[1752931807738,8.69166015,177.42,177.41,98.03468397]
[1752931808167,8.69166015,177.42,177.41,124.03468397]
[1752931808866,8.69166015,177.42,177.41,39.43]
[1752931810875,0.06,177.42,177.41,58.52000098]
[1752931811553,0.06,177.42,177.41,56.21468397]
[1752931812069,0.75,177.42,177.41,56.21468397]
[1752931812645,3.05531701,177.42,177.41,39.43]
[1752931813468,3.05531701,177.42,177.41,0.03]
[1752931813768,8.69166015,177.42,177.41,0.03]
[1752931814750,6.38634314,177.42,177.41,0.03]
[1752931815673,9.9875513,177.42,177.41,0.03]
[1752931830585,0.06,177.42,177.41,0.03]
[1752931830786,0.06,177.42,177.41,26.03]
[1752931831168,5.69634314,177.42,177.41,26.03]
[1752931832065,0.06,177.42,177.41,26.03]
[1752931833885,3.66120816,177.42,177.41,26.03]
[1752931834405,0.06,177.42,177.41,26.03]
[1752931834564,0.06,177.42,177.41,43.47468397]
[1752931834764,0.06,177.42,177.41,82.87468397]
[1752931835175,0.06,177.42,177.41,116.69468397]
[1752931836478,0.06,177.42,177.41,124.69468397]
[1752931838491,0.06,177.42,177.41,124.03468397]
[1752931839000,4.33120816,177.42,177.41,107.25]
[1752931840592,4.33120816,177.42,177.41,124.03468397]
[1752931840800,3.66120816,177.42,177.41,124.03468397]
[1752931841172,0.06,177.42,177.41,124.03468397]
[1752931842779,0.06,177.42,177.41,124.69468397]
[1752931846905,0.06,177.42,177.41,128.29589213]
[1752931850802,0.06,177.42,177.41,124.69468397]
[1752931850999,0.06,177.42,177.41,128.29589213]
[1752931851585,0.06,177.42,177.41,124.69468397]
[1752931855613,0.06,177.42,177.41,128.29589213]